bitfinex-derivatives/quotes_ETHF0:USTF0_20250627
["timestamp","ask_amount","ask_price","bid_price","bid_amount"]
[1751058259831,0.82408,2425.9,2425.8,67.38692]
[1751058260538,0.82415,2425.7,2425.6,6.46801497]
[1751058260730,0.82415,2425.7,2425.6,32.21931497]
[1751058260931,0.82415,2425.7,2425.6,69.7591]
[1751058261632,0.82413,2425.8,2425.6,70.58326]
[1751058261839,0.82413,2425.8,2425.7,3.28176504]
[1751058262039,0.82413,2425.8,2425.7,2.45761504]
[1751058263739,0.82413,2425.8,2425.7,27.52461504]
[1751058264838,0.82413,2425.8,2425.7,25.067]
[1751058265643,7.2741,2425.9,2425.7,25.89115]
[1751058265836,0.6842,2426.1,2425.9,0.82406]
[1751058266043,6.45,2426.0,2425.9,0.82406]
[1751058266338,6.45,2426.0,2425.9,25.89006]
[1751058266840,7.27405,2426.0,2425.9,25.89006]
[1751058269148,0.82405,2426.0,2425.9,25.89006]
[1751058269946,0.6964,2426.2,2426.0,0.82405]
[1751058270248,1.78240248,2426.1,2426.0,0.82405]
[1751058270448,0.95839248,2426.1,2426.0,0.82405]
[1751058271844,0.95839248,2426.1,2426.0,2.22395]
[1751058272448,0.95839248,2426.1,2426.0,2.94145]
[1751058273250,6.45,2426.3,2426.2,0.82398]
[1751058273445,7.40840765,2426.3,2426.2,0.82398]
[1751058274249,0.95840765,2426.3,2426.2,0.82398]
[1751058274655,0.95840765,2426.3,2426.2,2.22388]
[1751058275251,0.95840765,2426.3,2426.2,5.43168]
[1751058279053,0.95840765,2426.3,2426.2,6.11688]
[1751058279757,0.95840765,2426.3,2426.2,46.91688]
[1751058283161,0.82388,2426.5,2426.4,0.82391]
[1751058283360,1.78004054,2426.5,2426.4,25.88291]
[1751058284259,0.95616054,2426.5,2426.4,25.88291]
[1751058284658,1.78004054,2426.5,2426.4,25.88291]
[1751058285060,0.95616054,2426.5,2426.4,25.88291]
[1751058285260,1.78004054,2426.5,2426.4,25.88291]
[1751058285461,1.78004054,2426.5,2426.4,25.059]
[1751058286058,2.25268,2426.5,2426.4,25.059]
[1751058289761,0.82395,2426.3,2426.2,5.66441528]
[1751058289961,0.82398,2426.2,2426.0,2.45661528]
[1751058290162,0.6961,2426.1,2426.0,3.28065528]
[1751058290363,0.6961,2426.1,2426.0,44.08065528]
[1751058291067,0.7137,2426.2,2426.1,0.82401]
[1751058291268,0.7137,2426.2,2426.1,3.2793709]
[1751058291565,0.82401,2426.1,2426.0,43.2553609]
[1751058291767,0.82401,2426.1,2426.0,2.4553609]
[1751058292966,9.3364,2426.2,2426.0,0.82405]
[1751058293169,8.5124,2426.2,2426.1,0.82401]
[1751058293366,0.7137,2426.2,2426.1,0.82401]
[1751058293561,0.7137,2426.2,2425.9,46.4631609]
[1751058293760,0.7137,2426.2,2425.9,72.3432309]
[1751058293761,2.15104,2426.1,2425.9,72.3432309]
[1751058294665,2.15104,2426.1,2426.0,25.057]
[1751058295256,0.82408,2425.9,2425.8,2.4553609]
[1751058295465,0.82412,2425.8,2425.7,2.4553609]
[1751058295665,2.86292,2425.8,2425.7,2.4553609]
[1751058295872,2.86292,2425.8,2425.7,43.2553609]
[1751058297768,2.86292,2425.8,2425.7,40.8]
[1751058299074,2.0388,2425.8,2425.7,41.62415]
[1751058299373,0.7118,2425.8,2425.7,41.62415]
[1751058299571,6.445,2426.0,2425.9,0.82406]
[1751058299770,6.445,2426.0,2425.7,2.4553609]
[1751058300068,0.82412,2425.8,2425.6,2.4553609]
[1751058300376,0.82415,2425.7,2425.6,65.861]
[1751058300673,0.7033,2425.7,2425.6,72.3483409]
[1751058300972,0.7033,2425.7,2425.6,69.1405409]
[1751058301769,0.7033,2425.7,2425.5,2.4553609]
[1751058301970,2.87968,2425.6,2425.5,2.4553609]
[1751058302462,0.82422,2425.5,2425.4,43.2553609]
[1751058302667,0.7109,2425.6,2425.4,43.2553609]
[1751058302867,0.7109,2425.6,2425.5,28.3385809]
[1751058303366,0.7109,2425.6,2425.5,28.3395809]
[1751058303674,0.7033,2425.7,2425.6,0.82418]
[1751058303877,0.82418,2425.6,2425.5,2.4553609]
[1751058304176,1.3461,2425.6,2425.4,68.3153609]
[1751058304368,1.3461,2425.6,2425.5,2.4553609]
[1751058304569,1.3461,2425.6,2425.5,3.2795509]
[1751058305076,2.17028,2425.6,2425.5,3.2795509]
[1751058305475,1.3461,2425.6,2425.5,3.2795509]
[1751058305675,1.3461,2425.6,2425.5,0.82419]
[1751058306776,1.3461,2425.6,2425.2,3.2796709]
[1751058306977,0.7033,2425.7,2425.3,2.4553609]
[1751058307271,0.82418,2425.6,2425.5,0.8242]
[1751058307478,0.82418,2425.6,2425.4,67.39873]
[1751058307669,0.7033,2425.7,2425.4,66.5745]
[1751058307869,0.82418,2425.6,2425.4,67.39873]
[1751058308070,1.52747,2425.7,2425.5,0.82422]
[1751058308278,1.52747,2425.7,2425.6,0.82418]
[1751058308577,0.7033,2425.7,2425.6,0.82418]
[1751058308876,1.52746,2425.7,2425.5,0.8242]
[1751058309176,0.82418,2425.6,2425.4,67.39873]
[1751058309574,1.52747,2425.7,2425.5,0.82421]
[1751058310277,0.7033,2425.7,2425.6,0.82418]
[1751058310472,4.99,2425.9,2425.5,3.2078]
[1751058310674,4.99,2425.9,2425.5,4.6429]
[1751058310869,4.99,2425.9,2425.8,0.82412]
[1751058311671,0.82406,2426.0,2425.8,0.82412]
[1751058312280,0.6822,2426.1,2425.6,26.5031]
[1751058312576,0.82401,2426.1,2425.9,0.82407]
[1751058312776,1.08501,2426.1,2426.0,0.6877]
[1751058312974,2.0396648,2426.1,2426.0,0.6877]
[1751058313364,2.0396648,2426.1,2426.0,1.51175]
[1751058313566,1.2156548,2426.1,2426.0,1.51175]
[1751058313884,0.9546548,2426.1,2426.0,1.51175]
[1751058315079,3.2078,2426.2,2426.1,0.82401]
[1751058315283,0.95467516,2426.2,2426.1,0.82401]
[1751058315578,0.82398,2426.2,2426.1,0.82399]
[1751058315768,0.82397,2426.3,2426.1,0.82399]
[1751058316070,0.82397,2426.3,2426.2,0.82398]
[1751058316266,1.77866656,2426.3,2426.2,0.82398]
[1751058316681,1.77866656,2426.3,2426.1,0.82399]
[1751058316881,0.82397,2426.3,2426.1,0.82399]
[1751058317672,0.82397,2426.3,2426.1,2.15289]
[1751058317876,1.50163,2426.4,2426.2,0.82398]
[1751058318073,0.6777,2426.4,2426.2,0.82398]
[1751058318367,1.50162,2426.4,2426.2,0.82398]
[1751058318673,6.4482,2426.5,2426.4,0.82391]
[1751058318877,3.2404,2426.5,2426.3,0.82393]
[1751058319078,4.0643,2426.5,2426.3,0.82393]
[1751058319381,4.06428,2426.5,2426.4,1.55091]
[1751058319681,4.06428,2426.5,2426.4,0.727]
[1751058321385,5.01911606,2426.5,2426.4,0.727]
[1751058321580,1.77871606,2426.5,2426.4,0.727]
[1751058322375,0.82388,2426.5,2426.4,0.727]
[1751058325071,0.82385,2426.6,2426.4,1.55089]
[1751058325277,0.82385,2426.6,2426.5,3.2078]
[1751058325886,0.82388,2426.5,2426.4,0.727]
[1751058326778,0.82395,2426.3,2426.2,28.2648]
[1751058327182,0.82395,2426.3,2426.2,3.2078]
[1751058327387,1.49895,2426.3,2426.2,3.2078]
[1751058331988,1.49895,2426.3,2426.2,4.03178]
[1751058332488,1.49895,2426.3,2426.2,3.2078]
[1751058333390,1.49895,2426.3,2426.2,4.03178]
[1751058333889,1.49895,2426.3,2426.2,3.2078]
[1751058335594,1.49895,2426.3,2426.2,28.2638]
[1751058338388,1.49895,2426.3,2426.2,28.2628]
[1751058339298,0.82398,2426.2,2426.1,0.698]
[1751058339498,0.82398,2426.2,2426.1,25.753]
[1751058339794,0.82398,2426.2,2426.1,0.698]
[1751058339987,0.82398,2426.2,2426.1,25.753]
[1751058342991,0.82398,2426.2,2426.1,0.698]
[1751058343798,0.82398,2426.2,2426.1,25.752]
[1751058344397,0.82398,2426.2,2426.1,0.698]
[1751058344894,0.82398,2426.2,2426.1,25.752]
[1751058345905,0.82405,2426.0,2425.9,3.2078]
[1751058346107,0.82405,2426.0,2425.9,28.2618]
[1751058350108,0.82405,2426.0,2425.9,28.9579]
[1751058350403,0.82405,2426.0,2425.9,3.9039]
[1751058350608,0.82405,2426.0,2425.9,25.7501]
[1751058350810,0.82405,2426.0,2425.9,26.57417]
[1751058351109,0.7233,2426.2,2425.9,26.57417]
[1751058351411,0.82405,2426.0,2425.9,26.57417]
[1751058352410,0.82405,2426.0,2425.9,27.94597]
[1751058352612,0.82404,2426.1,2426.0,0.82405]
[1751058352808,0.82405,2426.0,2425.9,27.94596]
[1751058353112,4.99,2426.4,2425.9,30.3297]
[1751058353311,0.82393,2426.4,2426.2,0.82396]
[1751058353511,0.82393,2426.4,2426.3,0.6784]
[1751058356516,0.82391,2426.4,2426.3,0.6784]
[1751058357011,3.2078,2426.5,2426.3,0.6784]
[1751058357310,0.6991,2426.6,2426.3,1.50232]
[1751058357616,0.82391,2426.4,2426.3,1.50232]
[1751058357810,0.8239,2426.5,2426.4,0.82391]
[1751058358115,0.8239,2426.5,2426.3,1.50232]
[1751058359117,6.442,2426.7,2426.3,25.7324]
[1751058359314,0.82391,2426.4,2426.3,25.7324]
[1751058359716,0.82391,2426.4,2426.3,26.55635]
[1751058359918,0.8239,2426.5,2426.3,26.55635]
[1751058360216,0.8239,2426.5,2426.4,0.82391]
[1751058360417,0.82391,2426.4,2426.3,26.55633]
[1751058360616,0.82391,2426.4,2426.3,66.5324]
[1751058360918,0.82391,2426.4,2426.3,67.35635]
[1751058361115,0.82389,2426.5,2426.4,0.82391]
[1751058361619,3.2078,2426.6,2426.5,0.82388]
[1751058362416,4.03164,2426.6,2426.5,0.82388]
[1751058362618,4.03164,2426.6,2426.5,25.87688]
[1751058362818,4.03164,2426.6,2426.5,25.053]
[1751058365817,0.82388,2426.5,2426.4,25.052]
[1751058366017,1.51908,2426.5,2426.4,25.052]
[1751058367822,1.51908,2426.5,2426.2,9.6498]
[1751058367823,0.6952,2426.5,2426.2,3.2078]
[1751058368122,2.1077,2426.5,2426.2,4.03176]
[1751058368321,0.82395,2426.3,2426.2,3.2078]
[1751058369218,0.82398,2426.2,2426.1,0.7309]
[1751058369410,1.52968,2426.2,2426.1,0.7309]
[1751058369615,1.52968,2426.2,2426.1,1.55491]
[1751058369916,1.52968,2426.2,2426.1,0.7309]
[1751058370925,0.7057,2426.2,2426.1,1.55491]
[1751058371322,1.52968,2426.2,2426.1,0.7309]
[1751058371820,1.52968,2426.2,2426.1,1.55491]
[1751058374031,0.7057,2426.2,2426.1,1.55491]
[1751058374328,1.52968,2426.2,2426.1,1.55491]
[1751058374927,1.52968,2426.2,2426.1,0.7309]
[1751058375427,1.52968,2426.2,2426.1,25.7809]
[1751058375725,1.52968,2426.2,2426.1,26.60491]
[1751058376330,1.52968,2426.2,2426.1,1.55491]
[1751058376632,0.7057,2426.2,2426.1,26.60491]
[1751058377224,1.52968,2426.2,2426.1,26.60491]
[1751058379629,1.52968,2426.2,2426.1,25.7809]
[1751058380330,1.52968,2426.2,2426.1,26.60491]
[1751058380634,0.7057,2426.2,2426.1,26.60391]
[1751058381134,0.7057,2426.2,2426.1,1.55491]
[1751058381335,0.7057,2426.2,2426.1,26.60391]
[1751058381739,0.7057,2426.2,2426.1,1.55491]
[1751058381942,0.7057,2426.2,2426.1,26.60391]
[1751058382839,3.2078,2426.5,2426.1,25.7799]
[1751058383034,3.2078,2426.5,2426.1,27.2131]
[1751058383442,3.2078,2426.5,2426.4,0.82391]
[1751058384140,3.2078,2426.5,2426.4,1.50431]
[1751058385241,4.03168,2426.5,2426.4,1.50431]
[1751058388947,4.03168,2426.5,2426.4,0.6804]
[1751058390143,0.82392,2426.4,2426.2,25.047]
[1751058390344,0.82392,2426.4,2426.3,0.82395]
[1751058394954,3.2078,2426.5,2426.4,0.82391]
[1751058395849,0.6746,2426.8,2426.7,0.82381]
[1751058396242,11.5248,2427.0,2426.6,0.82382]
[1751058396443,0.82379,2426.8,2426.7,1.52941]
[1751058398657,0.82376,2426.9,2426.8,0.82378]
[1751058398851,4.54603,2427.0,2426.8,0.82378]
[1751058399050,1.48913,2427.0,2426.9,0.82374]
[1751058399357,2.44469071,2427.0,2426.9,0.82374]
[1751058399548,0.95556071,2427.0,2426.9,0.82374]
[1751058400970,1.77927071,2427.0,2426.9,0.82374]
[1751058401457,1.4442,2427.2,2426.8,29.07555]
[1751058401656,0.82373,2427.0,2426.8,4.03155]
[1751058401953,0.82373,2427.0,2426.9,0.82374]
[1751058402756,0.82369,2427.1,2427.0,0.82371]
[1751058403052,1.4442,2427.2,2427.1,0.82367]
[1751058403245,2.39808528,2427.2,2427.1,0.82367]
[1751058403446,1.4442,2427.2,2427.1,0.82367]
[1751058403841,7.26256,2427.5,2427.3,0.82361]
[1751058404045,0.95353084,2427.4,2427.3,0.82361]
[1751058404848,0.7091,2427.5,2427.4,0.82357]
[1751058405044,1.66213528,2427.5,2427.4,0.82357]
[1751058405755,0.7091,2427.5,2427.4,0.82357]
[1751058406054,0.82349,2427.7,2427.5,0.82352]
[1751058406255,1.51879,2427.7,2427.5,0.82352]
[1751058407053,1.51879,2427.7,2427.6,0.8235]
[1751058407258,0.6953,2427.7,2427.6,0.8235]
[1751058408261,1.51877,2427.7,2427.6,0.8235]
[1751058409458,1.51877,2427.7,2427.5,0.82352]
[1751058409962,1.51877,2427.7,2427.6,0.6794]
[1751058414066,0.82343,2427.9,2427.6,0.6794]
[1751058414268,0.82343,2427.9,2427.7,0.82344]
[1751058414564,0.82343,2427.9,2427.8,0.82344]
[1751058415158,2.24129,2428.0,2427.8,0.82344]
[1751058415358,0.82344,2427.8,2427.7,0.82345]
[1751058416469,0.82342,2427.9,2427.8,0.82344]
[1751058417471,0.82342,2427.9,2427.7,41.62345]
[1751058417670,0.82342,2427.9,2427.8,0.82344]
[1751058419364,4.99,2428.1,2427.7,44.0078]
[1751058419571,4.1244,2428.4,2428.3,0.82327]
[1751058420468,4.94763,2428.4,2428.2,0.82328]
[1751058420859,4.1244,2428.4,2428.3,0.82327]
[1751058421571,0.24,2428.4,2428.3,0.82327]
[1751058421871,4.52651176,2429.3,2428.3,5.0]
[1751058421872,3.2078,2429.3,2428.3,5.0]
[1751058422064,0.82308,2428.9,2428.4,32.891]
[1751058422261,5.40904,2429.0,2428.5,41.4851]
[1751058422459,2.20124,2429.0,2428.8,0.82309]
[1751058422662,1.3782,2429.0,2428.8,0.82309]
[1751058422870,0.82304,2429.0,2428.7,0.82312]
[1751058423060,3.2078,2429.0,2428.2,0.82328]
[1751058423261,4.99,2429.4,2428.3,0.82325]
[1751058423262,0.82319,2428.6,2428.3,0.82325]
[1751058423462,0.6732,2428.5,2427.7,2.4580632]
[1751058423665,0.82335,2428.1,2427.8,41.62342]
[1751058423865,3.57327,2428.0,2427.8,40.8]
[1751058424068,0.82342,2427.9,2427.6,4.0313]
[1751058424263,2.20004,2427.8,2427.6,3.2078]
[1751058424461,2.20004,2427.8,2427.7,40.8]
[1751058425071,1.3766,2427.8,2427.7,40.8]
[1751058426567,1.3766,2427.8,2427.7,41.62347]
[1751058426770,0.82341,2427.9,2427.7,41.62347]
[1751058427069,0.82341,2427.9,2427.8,2.44129194]
[1751058427268,2.22001,2427.9,2427.7,43.24129194]
[1751058427464,2.22001,2427.9,2427.8,2.44129194]
[1751058429568,2.22001,2427.9,2427.7,40.8]
[1751058429764,2.22001,2427.9,2427.7,41.4787]
[1751058429968,2.19668,2428.0,2427.7,42.30217]
[1751058430776,2.19668,2428.0,2427.8,0.82343]
[1751058430972,2.19668,2428.0,2427.8,25.94143]
[1751058431167,0.6732,2428.0,2427.9,0.8234]
[1751058431373,0.82334,2428.1,2427.9,0.8234]
[1751058431672,0.82337,2428.0,2427.8,66.74142]
[1751058431976,0.7034,2428.2,2427.8,72.351]
[1751058432178,0.7034,2428.2,2428.0,0.82334]
[1751058432477,1.5267,2428.2,2428.0,0.82334]
[1751058432677,1.5267,2428.2,2428.1,0.6733]
[1751058432878,0.7034,2428.2,2428.1,1.49664]
[1751058433670,1.5267,2428.2,2428.1,0.6733]
[1751058435580,1.5267,2428.2,2428.1,1.49664]
[1751058436279,0.7034,2428.2,2428.1,1.49664]
[1751058436481,1.5267,2428.2,2428.1,0.6733]
[1751058437082,0.7034,2428.2,2428.1,1.49664]
[1751058437381,0.82325,2428.4,2428.3,0.82326]
[1751058437577,0.82329,2428.3,2428.1,1.49662]
[1751058438180,0.82329,2428.3,2428.1,26.59962]
[1751058438683,0.82329,2428.3,2428.2,0.8233]
[1751058440480,0.82329,2428.3,2428.1,26.59961]
[1751058440785,0.8233,2428.2,2428.1,25.7763]
[1751058442884,0.8233,2428.2,2428.1,26.59964]
[1751058443184,0.82328,2428.3,2428.1,26.59964]
[1751058443384,0.8233,2428.2,2428.1,26.59964]
[1751058443883,0.8233,2428.2,2428.1,25.7763]
[1751058444485,0.8233,2428.2,2428.1,26.59964]
[1751058445687,0.8233,2428.2,2428.1,25.7763]
[1751058446187,0.8233,2428.2,2428.1,25.7523]
[1751058446387,1.77380424,2428.2,2428.1,26.57564]
[1751058446688,1.77380424,2428.2,2428.1,25.7523]
[1751058447890,0.95050424,2428.2,2428.1,26.57563]
[1751058448082,0.82329,2428.3,2428.1,26.57563]
[1751058448388,0.6967,2428.5,2428.1,25.7523]
[1751058448389,1.77396976,2428.2,2428.1,25.7523]
[1751058448690,2.49306976,2428.2,2428.1,25.7523]
[1751058449084,2.49306976,2428.2,2428.1,0.6733]
[1751058449389,2.49306976,2428.2,2428.1,25.7403]
[1751058451392,9.87756976,2428.2,2427.8,2.44129194]
[1751058451688,0.8235,2427.6,2427.5,2.44129194]
[1751058453285,0.8235,2427.6,2427.5,27.62929194]
[1751058453497,0.8235,2427.6,2427.5,25.188]
[1751058456295,0.8235,2427.6,2427.3,50.4748]
[1751058456296,0.82357,2427.4,2427.3,50.4748]
[1751058456497,0.82357,2427.4,2427.3,75.6488]
[1751058457198,0.82355,2427.5,2427.3,76.47239]
[1751058457393,2.1315,2427.8,2427.3,75.6488]
[1751058457697,0.82353,2427.6,2427.3,75.6488]
[1751058457894,0.82353,2427.6,2427.4,0.82356]
[1751058458694,0.82353,2427.6,2427.5,25.169]
[1751058458900,0.82349,2427.7,2427.5,25.169]
[1751058459402,0.82349,2427.7,2427.5,25.99252]
[1751058459601,0.8235,2427.6,2427.5,25.98752]
[1751058459801,0.82349,2427.7,2427.5,25.98752]
[1751058460203,0.82349,2427.7,2427.6,0.8235]
[1751058460501,5.8134,2428.0,2427.6,0.6843]
[1751058460700,0.94954626,2427.9,2427.6,2.7321]
[1751058460899,0.8234,2428.0,2427.9,0.8234]
[1751058461099,0.949542,2428.0,2427.9,0.8234]
[1751058461306,0.949542,2428.0,2427.8,0.82341]
[1751058461307,0.8234,2427.9,2427.8,0.82341]
[1751058462011,0.82339,2428.0,2427.8,0.82341]
[1751058462307,0.8234,2427.9,2427.8,0.82341]
[1751058462703,0.82339,2428.0,2427.9,0.8234]
[1751058463008,0.703,2428.1,2428.0,0.82337]
[1751058463307,0.94961503,2428.1,2428.0,0.82337]
[1751058464111,3.2078,2428.3,2428.2,0.8233]
[1751058464304,4.15744184,2428.3,2428.2,0.8233]
[1751058466100,4.98071184,2428.3,2428.1,25.99032]
[1751058466308,4.03107,2428.3,2428.1,25.99032]
[1751058466807,4.03107,2428.3,2428.2,0.8233]
[1751058467000,4.15693873,2428.3,2428.2,0.8233]
[1751058467201,4.98020873,2428.3,2428.2,0.8233]
[1751058467602,4.15693873,2428.3,2428.2,0.8233]
[1751058467908,0.94913873,2428.3,2428.2,0.8233]
[1751058468913,0.94913873,2428.3,2428.2,2.1483]
[1751058469611,0.94913873,2428.3,2428.1,25.8713]
[1751058469612,0.8233,2428.2,2428.1,25.8713]
[1751058470107,0.82328,2428.3,2428.1,26.69462]
[1751058470314,0.82324,2428.4,2428.2,0.82328]
[1751058470613,0.82327,2428.3,2428.1,28.12032]
[1751058470905,0.82327,2428.3,2428.1,27.297]
[1751058471111,0.82326,2428.4,2428.2,0.8233]
[1751058471406,0.82326,2428.4,2428.3,0.7249]
[1751058472204,0.82323,2428.4,2428.3,0.7249]
[1751058472406,0.82327,2428.3,2428.2,5.64909194]
[1751058472614,0.82327,2428.3,2428.2,3.2078]
[1751058473615,0.8234,2427.9,2427.8,2.44129194]
[1751058473806,9.7118,2428.0,2427.5,3.2774176]
[1751058474008,2.1596,2427.8,2427.5,2.45327566]
[1751058474212,0.8235,2427.6,2427.5,2.45327566]
[1751058474411,2.98509,2427.7,2427.4,31.64564566]
[1751058474609,2.1616,2427.7,2427.5,0.82353]
[1751058475116,2.98508,2427.7,2427.5,0.82353]
[1751058475301,2.98508,2427.7,2427.4,30.82207566]
[1751058475505,0.82351,2427.6,2427.4,31.64562566]
[1751058475714,2.98509,2427.7,2427.4,31.64562566]
[1751058476210,2.1616,2427.7,2427.4,30.82207566]
[1751058476516,2.20052,2427.6,2427.4,31.64563566]
[1751058476714,2.20052,2427.6,2427.4,6.48463566]
[1751058476914,2.20052,2427.6,2427.4,31.64063566]
[1751058477610,2.20052,2427.6,2427.4,31.63763566]
[1751058477813,1.377,2427.6,2427.4,31.63763566]
[1751058478516,1.377,2427.6,2427.4,6.48463566]
[1751058478715,2.20051,2427.6,2427.4,31.63463566]
[1751058479117,2.20051,2427.6,2427.4,6.48463566]
[1751058479313,2.20051,2427.6,2427.4,31.63163566]
[1751058479522,2.20051,2427.6,2427.5,0.82354]
[1751058480821,2.20051,2427.6,2427.4,31.62762566]
[1751058481022,1.377,2427.6,2427.5,25.96754]
[1751058481319,0.7158,2427.7,2427.6,0.8235]
[1751058482613,1.53927,2427.7,2427.5,29.13769566]
[1751058483113,1.53927,2427.7,2427.6,0.8235]
[1751058483620,1.53927,2427.7,2427.5,29.13769566]
[1751058483817,1.53929,2427.7,2427.5,26.68442]
[1751058484122,0.7158,2427.7,2427.6,0.8235]
[1751058484322,1.53929,2427.7,2427.5,29.13769566]
[1751058485413,1.53929,2427.7,2427.6,0.8235]
[1751058486616,0.8235,2427.6,2427.5,29.13770566]
[1751058486822,1.53929,2427.7,2427.5,29.13770566]
[1751058487222,1.53929,2427.7,2427.6,0.8235]
[1751058487425,1.53929,2427.7,2427.5,29.13769566]
[1751058487820,0.7158,2427.7,2427.6,0.8235]
[1751058489212,1.53927,2427.7,2427.6,0.8235]
[1751058490323,0.7158,2427.7,2427.6,3.27677566]
[1751058493226,1.53726,2427.8,2427.7,0.82347]
[1751058493426,0.7289,2427.9,2427.6,2.45327566]
[1751058493725,0.82344,2427.8,2427.7,0.82347]
[1751058494122,0.82347,2427.7,2427.6,4.66586566]
[1751058494323,0.82347,2427.7,2427.6,3.27676566]
[1751058495027,0.7289,2427.9,2427.6,25.103]
[1751058495227,0.82349,2427.7,2427.6,25.103]
[1751058495535,0.82349,2427.7,2427.6,25.101]
[1751058497325,0.82349,2427.7,2427.6,25.9245]
[1751058498124,0.82349,2427.7,2427.6,25.101]
[1751058498329,0.82349,2427.7,2427.6,25.9245]
[1751058499329,0.8235,2427.6,2427.5,2.45327566]
[1751058499524,0.82361,2427.3,2427.2,27.54127566]
[1751058499729,0.82361,2427.3,2427.1,29.82165]
[1751058499925,0.82364,2427.2,2427.1,6.35268738]
[1751058500124,0.82364,2427.2,2427.1,3.894]
[1751058500325,0.82367,2427.1,2427.0,2.45868738]
[1751058500629,0.82374,2426.9,2426.8,5.66648738]
[1751058501124,0.82374,2426.9,2426.8,44.0078]
[1751058501628,0.82374,2426.9,2426.8,47.28592075]
[1751058502131,0.82374,2427.0,2426.8,44.83158]
[1751058502332,0.82374,2427.0,2426.9,3.27829903]
[1751058502827,0.95270907,2427.0,2426.7,0.6862]
[1751058503022,0.82374,2426.9,2426.7,41.4862]
[1751058503333,0.82376,2426.9,2426.7,0.6862]
[1751058503726,0.82378,2426.8,2426.7,0.6862]
[1751058503926,0.82376,2426.9,2426.7,0.6862]
[1751058504932,0.82378,2426.8,2426.7,0.6862]
[1751058505134,1.3457,2426.9,2426.6,25.107]
[1751058505429,0.82384,2426.6,2426.5,3.2078]
[1751058506025,0.82384,2426.6,2426.5,3.8705]
[1751058507430,1.55533,2426.7,2426.5,3.8705]
[1751058508033,0.82395,2426.3,2426.2,2.46007891]
[1751058508229,0.82395,2426.3,2426.1,3.95877891]
[1751058508429,1.3738,2426.6,2426.1,28.25077891]
[1751058508430,0.82398,2426.2,2426.1,28.25077891]
[1751058508629,0.82398,2426.2,2426.1,3.13477891]
[1751058508930,0.82398,2426.2,2426.1,0.6747]
[1751058510036,0.82401,2426.2,2426.0,25.121]
[1751058510228,0.82401,2426.2,2426.0,25.94504]
[1751058510428,0.82401,2426.2,2426.1,40.8]
[1751058510624,0.82404,2426.1,2425.9,26.65296]
[1751058510830,0.82404,2426.1,2426.0,0.82405]
[1751058511030,0.82404,2426.1,2426.0,40.8]
[1751058511231,0.7278,2426.3,2426.0,40.8]
[1751058511434,0.82401,2426.1,2426.0,40.8]
[1751058511632,0.82405,2426.0,2425.9,1.53297]
[1751058511934,0.82404,2426.1,2425.9,26.64697]
[1751058512238,0.824,2426.2,2426.0,0.82404]
[1751058512735,0.824,2426.2,2425.9,66.6229]
[1751058513137,0.824,2426.2,2426.0,0.82404]
[1751058514340,0.82401,2426.1,2425.9,67.44696]
[1751058514534,0.82401,2426.1,2426.0,0.82405]
[1751058514734,0.82399,2426.2,2426.0,0.82405]
[1751058515237,0.82401,2426.1,2426.0,0.82405]
[1751058515431,7.2088,2426.3,2425.6,3.2078]
[1751058515739,0.82417,2425.7,2425.5,0.8242]
[1751058515942,8.1978,2426.1,2425.7,0.82414]
[1751058516238,0.82415,2425.7,2425.6,40.8]
[1751058516446,0.82423,2425.5,2425.3,3.28435891]
[1751058516643,0.82423,2425.5,2425.3,0.82428]
[1751058517238,7.2048,2425.6,2424.9,3.2078]
[1751058517436,2.0569,2425.4,2424.9,3.873]
[1751058517634,7.87116,2425.4,2425.1,0.82433]
[1751058518042,7.87116,2425.4,2425.2,0.82431]
[1751058518241,5.7017,2425.4,2425.2,0.82431]
[1751058518542,0.8243,2425.3,2425.0,0.82436]
[1751058518738,0.82432,2425.2,2425.0,0.82436]
[1751058518933,1.54714,2425.2,2424.9,4.69742]
[1751058519134,0.7228,2425.2,2425.0,0.82437]
[1751058519344,0.7228,2425.2,2425.1,0.82435]
[1751058519539,4.99,2425.4,2425.3,0.82429]
[1751058519842,10.51494,2425.8,2425.5,0.82421]
[1751058520140,14.37714,2425.8,2425.5,0.82421]
[1751058520339,0.82416,2425.7,2425.5,0.82421]
[1751058520540,11.16934,2425.8,2425.5,0.82421]
[1751058520739,10.3452,2425.8,2425.4,0.82423]
[1751058520936,0.82417,2425.7,2425.4,2.18442]
[1751058521941,10.3452,2425.8,2425.4,1.3602]
[1751058522142,10.3452,2425.8,2424.4,5.33970903]
[1751058522143,3.2078,2425.5,2424.9,3.2078]
[1751058522343,0.82433,2425.2,2425.0,0.82439]
[1751058523444,0.82433,2425.2,2424.9,4.0322]
[1751058523648,0.82439,2425.0,2424.9,4.6409]
[1751058524241,0.82439,2425.0,2424.9,3.2078]
[1751058525038,2.8099,2425.4,2424.9,3.2078]
[1751058525242,0.82439,2425.0,2424.9,3.2078]
[1751058526240,0.82444,2424.9,2424.5,3.2078]
[1751058526438,3.2078,2425.1,2424.7,0.82448]
[1751058526650,0.82444,2424.9,2424.7,0.82448]
[1751058527446,0.82444,2424.9,2424.6,43.7003]
[1751058527642,4.99,2425.0,2424.6,42.8758]
[1751058527837,4.99,2425.0,2424.9,4.03222]
[1751058528042,4.03206,2425.4,2425.2,0.82431]
[1751058528344,3.2078,2425.4,2425.3,0.704]
[1751058528542,3.2078,2425.4,2425.3,1.52829]
[1751058528941,4.99,2425.6,2425.5,0.82422]
[1751058529138,0.82417,2425.7,2425.5,0.82422]
[1751058529934,3.2078,2425.8,2425.4,1.3714]